[Event "*** Titled Tuesday 3|2 Blitz"]
[Site "Chess.com"]
[Date "2015.12.01"]
[Round "8"]
[White "Rikikits"]
[Black "1stSecond"]
[Result "0-1"]
[WhiteElo "2580"]
[BlackElo "2470"]
[TimeControl "180+2"]
[EndTime "12:45:12 PST"]
[Termination "1stSecond won by resignation"]

1. e4 {[%clk 0:03:01.9]} 1... e5 {[%clk 0:03:00.8]} 2. Nf3 {[%clk 0:03:03.2]}
2... Nc6 {[%clk 0:03:02.4]} 3. Bc4 {[%clk 0:03:04.3]} 3... Bc5 {[%clk
0:03:02.4]} 4. O-O {[%clk 0:03:04.8]} 4... Nf6 {[%clk 0:03:03.8]} 5. d3 {[%clk
0:03:05.9]} 5... d6 {[%clk 0:03:04.9]} 6. c3 {[%clk 0:03:05.9]} 6... a6 {[%clk
0:03:05.9]} 7. Bb3 {[%clk 0:03:07.2]} 7... Ba7 {[%clk 0:03:06.7]} 8. Nbd2 {[%clk
0:03:08.2]} 8... Be6 {[%clk 0:03:06.2]} 9. Re1 {[%clk 0:03:08.7]} 9... h6 {[%clk
0:03:02.3]} 10. Nf1 {[%clk 0:03:08]} 10... Ne7 {[%clk 0:03:02.2]} 11. Ng3 {[%clk
0:03:07.6]} 11... Qd7 {[%clk 0:02:57.9]} 12. d4 {[%clk 0:03:05]} 12... Ng6
{[%clk 0:02:57.4]} 13. h3 {[%clk 0:02:43]} 13... O-O {[%clk 0:02:40.2]} 14. Be3
{[%clk 0:02:23.4]} 14... Bxb3 {[%clk 0:02:32.2]} 15. Qxb3 {[%clk 0:02:25.3]}
15... b5 {[%clk 0:02:27.2]} 16. Rad1 {[%clk 0:02:25.1]} 16... Qe6 {[%clk
0:02:24.6]} 17. dxe5 {[%clk 0:02:11.1]} 17... Nxe5 {[%clk 0:02:19.7]} 18. Nxe5
{[%clk 0:01:55.2]} 18... Qxe5 {[%clk 0:02:16.8]} 19. Bd4 {[%clk 0:01:53.6]}
19... Qg5 {[%clk 0:02:10.1]} 20. e5 {[%clk 0:01:48.3]} 20... c5 {[%clk 0:01:51]}
21. exf6 {[%clk 0:01:35.5]} 21... cxd4 {[%clk 0:01:51.4]} 22. Ne4 {[%clk
0:01:33.2]} 22... Qg6 {[%clk 0:01:49.3]} 23. fxg7 {[%clk 0:01:30.1]} 23... Rfe8
{[%clk 0:01:49.5]} 24. Qd5 {[%clk 0:01:28.9]} 24... dxc3 {[%clk 0:01:46.2]} 25.
bxc3 {[%clk 0:01:29.6]} 25... Rad8 {[%clk 0:01:45.2]} 26. Rd3 {[%clk 0:01:25.5]}
26... Qe6 {[%clk 0:01:14.5]} 27. Qb7 {[%clk 0:01:22.1]} 27... Bc5 {[%clk
0:01:04.9]} 28. Rf3 {[%clk 0:01:13.4]} 28... f5 {[%clk 0:00:59]} 29. Rf4 {[%clk
0:00:55.7]} 29... fxe4 {[%clk 0:00:52.2]} 30. Rfxe4 {[%clk 0:00:55.6]} 30... Qg6
{[%clk 0:00:53.1]} 31. Qd5+ {[%clk 0:00:52.1]} 31... Kxg7 {[%clk 0:00:53.8]} 32.
Rg4 {[%clk 0:00:49.3]} 32... Rxe1+ {[%clk 0:00:54]} 33. Kh2 {[%clk 0:00:50.9]}
33... Qxg4 {[%clk 0:00:51.9]} 34. hxg4 {[%clk 0:00:52.8]} 34... Rf8 {[%clk
0:00:52.1]} 35. f3 {[%clk 0:00:47.7]} 35... Rf7 {[%clk 0:00:47.1]} 36. g5 {[%clk
0:00:44.5]} 36... Re5 {[%clk 0:00:44.6]} 37. gxh6+ {[%clk 0:00:44.8]} 37... Kg6
{[%clk 0:00:39.4]} 38. Qd3+ {[%clk 0:00:43.3]} 38... Kxh6 {[%clk 0:00:40.5]} 39.
Qd2+ {[%clk 0:00:38.1]} 39... Kg6 {[%clk 0:00:34.4]} 40. Qd3+ {[%clk 0:00:38.8]}
40... Kg7 {[%clk 0:00:34.6]} 41. g4 {[%clk 0:00:38.1]} 41... Re3 {[%clk
0:00:33.9]} 42. Qd5 {[%clk 0:00:38.4]} 42... Rfxf3 {[%clk 0:00:31.4]} 43. Qg5+
{[%clk 0:00:38.2]} 43... Kf7 {[%clk 0:00:32.7]} 44. Qh5+ {[%clk 0:00:39.4]}
44... Ke6 {[%clk 0:00:32.8]} 45. Qe8+ {[%clk 0:00:38.3]} 45... Kd5 {[%clk
0:00:33.9]} 46. Qg8+ {[%clk 0:00:39.6]} 46... Ke4 {[%clk 0:00:34.5]} 47. Qg6+
{[%clk 0:00:38.1]} 47... Ke5 {[%clk 0:00:27.2]} 48. Qe8+ {[%clk 0:00:36.7]}
48... Kf4 {[%clk 0:00:27.6]} 49. Qf7+ {[%clk 0:00:35.2]} 49... Kxg4 {[%clk
0:00:28.5]} 50. Qg6+ {[%clk 0:00:36.6]} 50... Kf4 {[%clk 0:00:29.7]} 51. Qf6+
{[%clk 0:00:37.8]} 51... Ke4 {[%clk 0:00:31.1]} 52. Qg6+ {[%clk 0:00:37.7]}
52... Rf5 {[%clk 0:00:29.6]} 53. Qg4+ {[%clk 0:00:39.2]} 53... Ke5 {[%clk
0:00:30.6]} 54. Qg7+ {[%clk 0:00:40.2]} 54... Kd5 {[%clk 0:00:30.2]} 55. Qg8+
{[%clk 0:00:41.5]} 55... Ke4 {[%clk 0:00:31.2]} 56. Qe6+ {[%clk 0:00:42.1]}
56... Re5 {[%clk 0:00:32.4]} 57. Qg6+ {[%clk 0:00:43.3]} 57... Kd5 {[%clk
0:00:32]} 58. Qg8+ {[%clk 0:00:43.4]} 58... Re6 {[%clk 0:00:33.2]} 59. Qa8+
{[%clk 0:00:43.2]} 59... Kc4 {[%clk 0:00:33.8]} 60. Qxa6 {[%clk 0:00:45.1]}
60... Rh6+ {[%clk 0:00:28.8]} 61. Kg2 {[%clk 0:00:46.1]} 61... Rg6+ {[%clk
0:00:30.3]} 62. Kh2 {[%clk 0:00:44.9]} 62... Re8 {[%clk 0:00:30.1]} 0-1

[Event "*** Titled Tuesday 3|2 Blitz"]
[Site "Chess.com"]
[Date "2015.12.01"]
[Round "8"]
[White "salomez"]
[Black "silverback96"]
[Result "1-0"]
[WhiteElo "2092"]
[BlackElo "1914"]
[TimeControl "180+2"]
[EndTime "12:45:21 PST"]
[Termination "salomez won by resignation"]

1. e4 {[%clk 0:03:01.9]} 1... e6 {[%clk 0:03:01]} 2. d4 {[%clk 0:03:02.4]} 2...
d5 {[%clk 0:03:02.1]} 3. Nc3 {[%clk 0:03:00.7]} 3... Bb4 {[%clk 0:03:02.7]} 4.
Ne2 {[%clk 0:03:00.4]} 4... dxe4 {[%clk 0:02:59.4]} 5. a3 {[%clk 0:03:01.3]}
5... Bxc3+ {[%clk 0:03:00.3]} 6. Nxc3 {[%clk 0:03:01.5]} 6... Nc6 {[%clk
0:03:01.9]} 7. Bb5 {[%clk 0:03:02.2]} 7... Ne7 {[%clk 0:03:02.8]} 8. Nxe4 {[%clk
0:03:01]} 8... O-O {[%clk 0:02:53.9]} 9. Be3 {[%clk 0:02:44.9]} 9... Qd5 {[%clk
0:02:29]} 10. Bd3 {[%clk 0:02:35.2]} 10... Nf5 {[%clk 0:01:54.5]} 11. O-O {[%clk
0:01:07.5]} 11... Nfxd4 {[%clk 0:01:28.9]} 12. c4 {[%clk 0:00:46.3]} 12... Qd8
{[%clk 0:01:20]} 13. b4 {[%clk 0:00:35.7]} 13... e5 {[%clk 0:01:15]} 14. b5
{[%clk 0:00:31.2]} 14... Ne7 {[%clk 0:01:07.7]} 15. Qh5 {[%clk 0:00:28.8]} 15...
g6 {[%clk 0:00:59.5]} 16. Nf6+ {[%clk 0:00:28.4]} 16... Kg7 {[%clk 0:01:00.9]}
17. Qxh7+ {[%clk 0:00:11.5]} 17... Kxf6 {[%clk 0:01:00.1]} 18. Qh4+ {[%clk
0:00:10.7]} 18... Ke6 {[%clk 0:01:01.4]} 19. Rfe1 {[%clk 0:00:08.9]} 19... Nef5
{[%clk 0:00:57.3]} 20. Bxf5+ {[%clk 0:00:08.9]} 20... Nxf5 {[%clk 0:00:56.3]}
21. Qg4 {[%clk 0:00:06.5]} 21... Qh4 {[%clk 0:00:48]} 22. Qf3 {[%clk 0:00:07.4]}
22... Rh8 {[%clk 0:00:45.7]} 23. h3 {[%clk 0:00:07.3]} 23... Nxe3 {[%clk
0:00:33]} 24. Rxe3 {[%clk 0:00:07.4]} 24... Bd7 {[%clk 0:00:32.5]} 25. Qd5+
{[%clk 0:00:08.3]} 25... Ke7 {[%clk 0:00:32.7]} 26. Qxe5+ {[%clk 0:00:08.3]}
26... Kd8 {[%clk 0:00:32.3]} 27. Rd1 {[%clk 0:00:08]} 27... Kc8 {[%clk
0:00:31.3]} 28. Qd5 {[%clk 0:00:07.4]} 28... Rd8 {[%clk 0:00:31.3]} 29. Qxf7
{[%clk 0:00:07.9]} 29... b6 {[%clk 0:00:22]} 30. Re7 {[%clk 0:00:08.2]} 30...
Kb7 {[%clk 0:00:17.6]} 31. Rexd7 {[%clk 0:00:09.2]} 31... Rxd7 {[%clk 0:00:18]}
32. Qxd7 {[%clk 0:00:10.3]} 32... Qxc4 {[%clk 0:00:17.7]} 33. Qd5+ {[%clk
0:00:09.3]} 33... Qxd5 {[%clk 0:00:18.1]} 34. Rxd5 {[%clk 0:00:10.2]} 34... c5
{[%clk 0:00:19.2]} 35. Rd7+ {[%clk 0:00:10.2]} 35... Kc8 {[%clk 0:00:20]} 36.
Rg7 {[%clk 0:00:11.1]} 36... Rb8 {[%clk 0:00:20.3]} 37. Rxg6 {[%clk 0:00:10.8]}
37... Kd7 {[%clk 0:00:20.8]} 38. h4 {[%clk 0:00:11]} 38... Rc8 {[%clk 0:00:20]}
39. Kf1 {[%clk 0:00:11.1]} 39... c4 {[%clk 0:00:20.5]} 40. Ke2 {[%clk
0:00:11.7]} 40... Re8+ {[%clk 0:00:20.8]} 41. Kd2 {[%clk 0:00:12.1]} 41... Re4
{[%clk 0:00:21.7]} 42. Rg7+ {[%clk 0:00:12.6]} 42... Ke8 {[%clk 0:00:21.7]} 43.
g3 {[%clk 0:00:12.8]} 43... Re5 {[%clk 0:00:22]} 44. a4 {[%clk 0:00:11.6]} 44...
Rf5 {[%clk 0:00:19.9]} 45. f4 {[%clk 0:00:11.9]} 45... Rd5+ {[%clk 0:00:20.6]}
46. Kc3 {[%clk 0:00:12.2]} 46... Rc5 {[%clk 0:00:21.1]} 47. Rxa7 {[%clk
0:00:12.4]} 47... Kf8 {[%clk 0:00:23]} 48. Rb7 {[%clk 0:00:13.2]} 48... Rd5
{[%clk 0:00:24.4]} 49. Kxc4 {[%clk 0:00:13.4]} 49... Rd1 {[%clk 0:00:25.6]} 50.
Rxb6 {[%clk 0:00:14.1]} 50... Rg1 {[%clk 0:00:27.5]} 51. a5 {[%clk 0:00:14.5]}
51... Rxg3 {[%clk 0:00:27.4]} 52. a6 {[%clk 0:00:15.8]} 52... Rg4 {[%clk
0:00:29]} 53. a7 {[%clk 0:00:16.1]} 53... Rxf4+ {[%clk 0:00:30.9]} 54. Kc5
{[%clk 0:00:16.8]} 54... Ra4 {[%clk 0:00:31.4]} 55. Rb8+ {[%clk 0:00:17.3]}
55... Ke7 {[%clk 0:00:32]} 56. a8=Q {[%clk 0:00:17.7]} 56... Rxa8 {[%clk
0:00:32.1]} 1-0

[Event "*** Titled Tuesday 3|2 Blitz"]
[Site "Chess.com"]
[Date "2015.12.01"]
[Round "8"]
[White "DeviatkinAndrey"]
[Black "swayamsm"]
[Result "1/2-1/2"]
[WhiteElo "2527"]
[BlackElo "2455"]
[TimeControl "180+2"]
[EndTime "12:45:32 PST"]
[Termination "Game drawn by agreement"]

1. d4 {[%clk 0:03:01.9]} 1... e6 {[%clk 0:03:01.9]} 2. e4 {[%clk 0:02:50.8]}
2... d5 {[%clk 0:03:02.6]} 3. Nd2 {[%clk 0:02:51.9]} 3... Be7 {[%clk 0:03:00.3]}
4. c3 {[%clk 0:02:44.6]} 4... c5 {[%clk 0:02:58.7]} 5. Bb5+ {[%clk 0:02:32.9]}
5... Bd7 {[%clk 0:02:56.5]} 6. Bxd7+ {[%clk 0:02:33.9]} 6... Nxd7 {[%clk
0:02:56.5]} 7. exd5 {[%clk 0:02:32.7]} 7... exd5 {[%clk 0:02:58.4]} 8. Ngf3
{[%clk 0:02:33.5]} 8... Ngf6 {[%clk 0:02:56.4]} 9. O-O {[%clk 0:02:34.3]} 9...
O-O {[%clk 0:02:58]} 10. dxc5 {[%clk 0:02:35.2]} 10... Nxc5 {[%clk 0:02:56.6]}
11. Nb3 {[%clk 0:02:36.3]} 11... Ne6 {[%clk 0:02:45.5]} 12. Re1 {[%clk
0:02:35.8]} 12... Bd6 {[%clk 0:02:42.6]} 13. h3 {[%clk 0:01:57.3]} 13... Re8
{[%clk 0:02:40.6]} 14. Be3 {[%clk 0:01:56.4]} 14... Qc7 {[%clk 0:02:29.8]} 15.
Nbd4 {[%clk 0:01:56]} 15... a6 {[%clk 0:02:25.6]} 16. a4 {[%clk 0:01:55.9]}
16... Rac8 {[%clk 0:02:16.6]} 17. a5 {[%clk 0:01:41.6]} 17... Bf4 {[%clk
0:02:12.4]} 18. Nf5 {[%clk 0:01:29.1]} 18... Bxe3 {[%clk 0:02:09.1]} 19. Rxe3
{[%clk 0:01:29.6]} 19... Qf4 {[%clk 0:01:59.3]} 20. N5d4 {[%clk 0:01:08.3]}
20... h6 {[%clk 0:01:48.5]} 21. Nxe6 {[%clk 0:00:54.3]} 21... fxe6 {[%clk
0:01:43.7]} 22. Ra4 {[%clk 0:00:53.9]} 22... Ne4 {[%clk 0:01:40.8]} 23. Qe2
{[%clk 0:00:45.9]} 23... Rf8 {[%clk 0:01:33.9]} 24. Nd2 {[%clk 0:00:37.6]} 24...
Qxf2+ {[%clk 0:01:26.3]} 25. Qxf2 {[%clk 0:00:38.2]} 25... Nxf2 {[%clk
0:01:28.2]} 26. Rxe6 {[%clk 0:00:38.9]} 26... Nd3 {[%clk 0:01:26]} 27. Re7
{[%clk 0:00:34.7]} 27... Rce8 {[%clk 0:01:16.8]} 28. Rxe8 {[%clk 0:00:28.6]}
28... Rxe8 {[%clk 0:01:18.7]} 29. Rd4 {[%clk 0:00:27.7]} 29... Nxb2 {[%clk
0:01:09.4]} 30. Rxd5 {[%clk 0:00:29]} 30... Na4 {[%clk 0:01:00.4]} 31. c4 {[%clk
0:00:28.9]} 31... Rc8 {[%clk 0:00:58.6]} 32. Rd7 {[%clk 0:00:22.1]} 32... Nc5
{[%clk 0:00:56.1]} 33. Rd6 {[%clk 0:00:22.9]} 33... Kf7 {[%clk 0:00:51.5]} 34.
Nf3 {[%clk 0:00:21.4]} 34... Ke7 {[%clk 0:00:49.9]} 35. Rb6 {[%clk 0:00:20.3]}
35... Rc6 {[%clk 0:00:43.2]} 36. Rxc6 {[%clk 0:00:17.1]} 36... bxc6 {[%clk
0:00:45.1]} 37. Nd4 {[%clk 0:00:17.9]} 37... Kd7 {[%clk 0:00:40.5]} 38. Kf2
{[%clk 0:00:17.7]} 38... Nd3+ {[%clk 0:00:33.1]} 39. Ke2 {[%clk 0:00:18.6]}
39... Ne5 {[%clk 0:00:31.5]} 40. c5 {[%clk 0:00:20]} 40... Nc4 {[%clk
0:00:30.1]} 41. Nf5 {[%clk 0:00:15.2]} 41... Nxa5 {[%clk 0:00:27.3]} 42. Nxg7
{[%clk 0:00:16.4]} 42... Nb3 {[%clk 0:00:25.3]} 43. g4 {[%clk 0:00:16.8]} 43...
a5 {[%clk 0:00:23]} 44. Kd1 {[%clk 0:00:12.3]} 44... a4 {[%clk 0:00:19]} 45. Kc2
{[%clk 0:00:11.1]} 45... Nxc5 {[%clk 0:00:18.8]} 46. Nf5 {[%clk 0:00:11.6]}
46... Ne4 {[%clk 0:00:15.9]} 47. Nxh6 {[%clk 0:00:11.9]} 47... Ke6 {[%clk
0:00:17]} 48. Nf5 {[%clk 0:00:12.5]} 48... Nf2 {[%clk 0:00:16.9]} 49. Kb2 {[%clk
0:00:08]} 49... Nxh3 {[%clk 0:00:12.4]} 50. Ka3 {[%clk 0:00:09.1]} 50... c5
{[%clk 0:00:12.2]} 51. Kxa4 {[%clk 0:00:09.6]} 51... Nf2 {[%clk 0:00:13.8]} 52.
Kb5 {[%clk 0:00:08.3]} 52... Nxg4 {[%clk 0:00:11.3]} 53. Kxc5 {[%clk 0:00:09]}
53... Ne5 {[%clk 0:00:10.4]} 54. Nd4+ {[%clk 0:00:09.5]} 1/2-1/2

[Event "*** Titled Tuesday 3|2 Blitz"]
[Site "Chess.com"]
[Date "2015.12.01"]
[Round "8"]
[White "THORK"]
[Black "ZEN-22"]
[Result "1-0"]
[WhiteElo "2195"]
[BlackElo "2243"]
[TimeControl "180+2"]
[EndTime "12:46:45 PST"]
[Termination "THORK won by resignation"]

1. f4 {[%clk 0:03:01.9]} 1... g5 {[%clk 0:02:33.8]} 2. d4 {[%clk 0:02:48.6]}
2... gxf4 {[%clk 0:02:33.4]} 3. Bxf4 {[%clk 0:02:49.4]} 3... d6 {[%clk 0:02:34]}
4. Nf3 {[%clk 0:02:48.8]} 4... c5 {[%clk 0:02:34.3]} 5. c3 {[%clk 0:02:48.6]}
5... cxd4 {[%clk 0:02:33.9]} 6. cxd4 {[%clk 0:02:48.7]} 6... Nf6 {[%clk
0:02:28]} 7. Nc3 {[%clk 0:02:49.6]} 7... Bf5 {[%clk 0:02:27.2]} 8. e3 {[%clk
0:02:47.2]} 8... Nbd7 {[%clk 0:02:24.9]} 9. Bc4 {[%clk 0:02:48.2]} 9... Rc8
{[%clk 0:02:24.1]} 10. Bb3 {[%clk 0:02:48.9]} 10... Bg7 {[%clk 0:02:23.6]} 11.
O-O {[%clk 0:02:47.5]} 11... O-O {[%clk 0:02:21.8]} 12. Nh4 {[%clk 0:02:46.9]}
12... Bg6 {[%clk 0:02:20.3]} 13. Nxg6 {[%clk 0:02:46.7]} 13... hxg6 {[%clk
0:02:20.8]} 14. Qd3 {[%clk 0:02:48.6]} 14... e5 {[%clk 0:02:16.2]} 15. Bg5
{[%clk 0:02:48.1]} 15... exd4 {[%clk 0:02:08.3]} 16. exd4 {[%clk 0:02:48.8]}
16... Kh7 {[%clk 0:01:29]} 17. Rad1 {[%clk 0:02:47.3]} 17... Qa5 {[%clk
0:01:27.7]} 18. Qh3+ {[%clk 0:02:35.3]} 18... Kg8 {[%clk 0:01:27.4]} 19. Qh4
{[%clk 0:02:36.1]} 19... Nh7 {[%clk 0:00:55.7]} 20. Be7 {[%clk 0:02:34.4]} 20...
Qb6 {[%clk 0:00:52.1]} 21. Bxf8 {[%clk 0:02:31.4]} 21... Rxf8 {[%clk 0:00:52.4]}
22. Kh1 {[%clk 0:02:31]} 22... Ndf6 {[%clk 0:00:52]} 23. Qg3 {[%clk 0:02:29.6]}
23... Kh8 {[%clk 0:00:51.2]} 24. h3 {[%clk 0:02:17.3]} 24... Nh5 {[%clk
0:00:51.9]} 25. Qe3 {[%clk 0:02:14.4]} 25... N7f6 {[%clk 0:00:52.1]} 26. Kh2
{[%clk 0:02:11.7]} 26... d5 {[%clk 0:00:52.1]} 27. Qe7 {[%clk 0:02:10.3]} 27...
Kg8 {[%clk 0:00:34.8]} 28. g4 {[%clk 0:02:04.1]} 28... Re8 {[%clk 0:00:32.3]}
29. Qc5 {[%clk 0:02:01]} 29... Qxc5 {[%clk 0:00:25.4]} 30. dxc5 {[%clk
0:02:02.1]} 30... d4 {[%clk 0:00:25.3]} 31. Nb5 {[%clk 0:02:03.3]} 31... Re2+
{[%clk 0:00:25.1]} 32. Kg1 {[%clk 0:01:58.4]} 32... Ng3 {[%clk 0:00:25.5]} 33.
Rf3 {[%clk 0:01:57.4]} 33... Nfe4 {[%clk 0:00:21.3]} 34. Nxd4 {[%clk 0:01:56.8]}
34... Rxb2 {[%clk 0:00:22]} 35. Bxf7+ {[%clk 0:01:48.8]} 35... Kh7 {[%clk
0:00:23.1]} 36. Bd5 {[%clk 0:01:49.8]} 36... Bxd4+ {[%clk 0:00:23.2]} 37. Rxd4
{[%clk 0:01:48.7]} 37... Ne2+ {[%clk 0:00:24]} 38. Kf1 {[%clk 0:01:44.8]} 38...
Nxd4 {[%clk 0:00:23.8]} 39. Rf7+ {[%clk 0:01:44]} 39... Kh6 {[%clk 0:00:24.7]}
40. Bxe4 {[%clk 0:01:45.4]} 40... Kg5 {[%clk 0:00:23.2]} 41. Rxb7 {[%clk
0:01:43.2]} 41... Rxa2 {[%clk 0:00:24]} 42. c6 {[%clk 0:01:43.5]} 42... Ra1+
{[%clk 0:00:19.2]} 43. Kf2 {[%clk 0:01:44]} 43... Rc1 {[%clk 0:00:21.1]} 44. c7
{[%clk 0:01:44.4]} 44... Kf4 {[%clk 0:00:21.4]} 45. Bxg6 {[%clk 0:01:42.3]}
45... Ne6 {[%clk 0:00:21.8]} 46. Rxa7 {[%clk 0:01:35.2]} 46... Nxc7 {[%clk
0:00:22.6]} 47. Ra4+ {[%clk 0:01:31.1]} 47... Kg5 {[%clk 0:00:23.2]} 48. Be4
{[%clk 0:01:30.8]} 48... Ne6 {[%clk 0:00:23.4]} 49. Bf3 {[%clk 0:01:30.6]} 49...
Kh4 {[%clk 0:00:21.7]} 50. Ra5 {[%clk 0:01:27.6]} 50... Rc2+ {[%clk 0:00:20.3]}
51. Ke3 {[%clk 0:01:27.9]} 51... Rc3+ {[%clk 0:00:18.2]} 52. Kf2 {[%clk
0:01:29]} 52... Ng5 {[%clk 0:00:18.5]} 53. Bg2 {[%clk 0:01:25.8]} 53... Rc2+
{[%clk 0:00:19.7]} 54. Kg1 {[%clk 0:01:26.5]} 54... Kg3 {[%clk 0:00:17.3]} 55.
Ra3+ {[%clk 0:01:26.7]} 55... Kh4 {[%clk 0:00:17.8]} 56. Kh2 {[%clk 0:01:25.3]}
56... Rf2 {[%clk 0:00:16.1]} 57. Re3 {[%clk 0:01:24.6]} 57... Rd2 {[%clk
0:00:16.5]} 58. Kg1 {[%clk 0:01:23.9]} 58... Rb2 {[%clk 0:00:16.7]} 59. Kh2
{[%clk 0:01:23]} 59... Rc2 {[%clk 0:00:17.9]} 60. Kh1 {[%clk 0:01:21.5]} 60...
Rc1+ {[%clk 0:00:18.7]} 61. Kh2 {[%clk 0:01:22.5]} 61... Rc2 {[%clk 0:00:20.6]}
62. Ra3 {[%clk 0:01:20.5]} 62... Rb2 {[%clk 0:00:21.4]} 63. Kg1 {[%clk
0:01:18.9]} 63... Rb1+ {[%clk 0:00:22]} 64. Kh2 {[%clk 0:01:20.3]} 64... Rb2
{[%clk 0:00:23.9]} 65. Rc3 {[%clk 0:01:17.7]} 65... Ra2 {[%clk 0:00:23.3]} 66.
Re3 {[%clk 0:01:18.7]} 66... Rb2 {[%clk 0:00:24.5]} 67. Rc3 {[%clk 0:01:10.6]}
67... Ne4 {[%clk 0:00:23.7]} 68. Rc8 {[%clk 0:01:02.7]} 68... Nd2 {[%clk
0:00:21.6]} 69. Rh8+ {[%clk 0:01:02.6]} 69... Kg5 {[%clk 0:00:22.8]} 70. Rh5+
{[%clk 0:01:03.6]} 70... Kf4 {[%clk 0:00:24]} 71. Rf5+ {[%clk 0:01:04.7]} 71...
Ke3 {[%clk 0:00:25.3]} 72. Kg3 {[%clk 0:01:04.5]} 72... Rb3 {[%clk 0:00:25.9]}
73. g5 {[%clk 0:01:02.6]} 73... Ne4+ {[%clk 0:00:06.5]} 74. Kg4 {[%clk 0:00:58]}
74... Nf2+ {[%clk 0:00:07]} 75. Kh5 {[%clk 0:00:54.2]} 75... Kd4 {[%clk
0:00:08.5]} 76. g6 {[%clk 0:00:53.8]} 76... Nxh3 {[%clk 0:00:05.6]} 77. Bxh3
{[%clk 0:00:53.5]} 77... Rxh3+ {[%clk 0:00:06.6]} 78. Kg5 {[%clk 0:00:54.2]}
78... Rg3+ {[%clk 0:00:07.5]} 79. Kf6 {[%clk 0:00:55.5]} 79... Ke4 {[%clk
0:00:09.4]} 80. Rf1 {[%clk 0:00:51.8]} 80... Kd5 {[%clk 0:00:07]} 81. g7 {[%clk
0:00:52.5]} 81... Kd6 {[%clk 0:00:08.9]} 82. Kf7 {[%clk 0:00:53.6]} 82... Kd5
{[%clk 0:00:08.4]} 83. g8=Q {[%clk 0:00:53.9]} 1-0